bitfinex/quotes_SOLUSD_20260115
["timestamp","ask_amount","ask_price","bid_price","bid_amount"]
[1768501523886,2.704501,142.11,142.08,0.66]
[1768501524105,2.704501,142.11,142.08,3.32141224]
[1768501524715,9.74142419,142.11,142.09,2.66141224]
[1768501526227,7.03692319,142.11,142.09,2.66141224]
[1768501526386,9.63425756,142.12,142.1,2.66141224]
[1768501527112,9.63425756,142.12,142.08,1.40232023]
[1768501527415,9.63425756,142.12,142.1,2.66141224]
[1768501529127,9.63425756,142.12,142.08,8.44059731]
[1768501529336,9.63425756,142.12,142.1,2.66141224]
[1768501529618,9.63360203,142.13,142.1,2.66141224]
[1768501529787,2.59771252,142.12,142.1,2.66141224]
[1768501531419,9.63411495,142.12,142.1,2.66141224]
[1768501531604,2.59771252,142.11,142.09,2.66141224]
[1768501531809,2.59771252,142.11,142.08,0.66]
[1768501532006,2.59771252,142.11,142.08,3.32141224]
[1768501532315,2.59771252,142.11,142.08,2.66141224]
[1768501532690,2.59771252,142.11,142.06,8.44840926]
[1768501532691,2.59771252,142.11,142.06,0.66]
[1768501532891,2.59771252,142.11,142.06,3.32141224]
[1768501533096,2.59771252,142.11,142.08,3.41180205]
[1768501533311,9.63411495,142.12,142.09,2.66141224]
[1768501533522,2.59771252,142.11,142.09,2.66141224]
[1768501534042,10.29366166,142.13,142.1,2.66141224]
[1768501534199,2.59771252,142.12,142.1,2.66141224]
[1768501535310,9.83342798,142.14,142.11,2.66141224]
[1768501535616,17.58604613,142.16,142.11,2.66141224]
[1768501535617,7.0346833,142.16,142.13,2.66141224]
[1768501537401,7.0346833,142.16,142.12,2.66141224]
[1768501537741,2.59771252,142.15,142.12,2.66141224]
[1768501538324,2.59771252,142.15,142.11,2.66141224]
[1768501538927,2.59771252,142.15,142.09,0.66]
[1768501539105,2.59771252,142.15,142.1,2.66141224]
[1768501539312,9.63302981,142.14,142.1,5.27323894]
[1768501539520,9.63302981,142.14,142.11,2.66141224]
[1768501539700,2.59771252,142.13,142.11,2.66141224]
[1768501540820,2.59771252,142.13,142.1,5.27323894]
[1768501541222,9.63302981,142.14,142.11,2.66141224]
[1768501544213,9.63302981,142.14,142.1,2.6118267]
[1768501544531,9.63302981,142.14,142.11,2.66141224]
[1768501545324,9.63302981,142.14,142.11,5.27323894]
[1768501547033,2.59771252,142.14,142.11,5.27323894]
[1768501547635,2.59771252,142.14,142.12,2.66141224]
[1768501548005,9.63310807,142.14,142.12,2.66141224]
[1768501548429,9.63288526,142.15,142.12,2.66141224]
[1768501548730,2.59771252,142.14,142.11,2.6118267]
[1768501548912,2.59771252,142.14,142.1,5.91323894]
[1768501549607,2.59771252,142.14,142.11,2.66141224]
[1768501550005,2.59771252,142.14,142.1,2.6118267]
[1768501550305,7.03581228,142.13,142.1,5.27323894]
[1768501551415,7.03581228,142.13,142.1,6.76836955]
[1768501552007,9.63323163,142.14,142.11,4.15654285]
[1768501553126,9.63323163,142.14,142.11,6.64047486]
[1768501553339,3.34356574,142.16,142.12,6.64047486]
[1768501553936,2.70356574,142.15,142.12,6.64047486]
[1768501555244,2.70356574,142.15,142.12,6.61047486]
[1768501555545,2.70356574,142.15,142.12,4.15654285]
[1768501556867,9.73853275,142.15,142.12,4.15654285]
[1768501557432,7.03496701,142.15,142.13,2.48393201]
[1768501557630,0.2,142.17,142.15,2.48393201]
[1768501557863,0.2,142.17,142.15,6.58047486]
[1768501558656,7.23394079,142.17,142.15,6.58047486]
[1768501558838,7.23394079,142.17,142.15,4.15654285]
[1768501559954,7.23394079,142.17,142.16,4.15654285]
[1768501560152,0.2,142.17,142.16,4.15654285]
[1768501560341,9.73697899,142.18,142.16,4.15654285]
[1768501560342,7.03341325,142.18,142.16,4.15654285]
[1768501561260,9.73697899,142.18,142.16,4.15654285]
[1768501561445,0.2,142.19,142.17,4.15654285]
[1768501562053,0.2,142.19,142.17,6.64047486]
[1768501562346,0.2,142.19,142.17,4.15654285]
[1768501562768,9.93644242,142.19,142.17,4.15654285]
[1768501562950,0.2,142.19,142.17,4.15654285]
[1768501563256,9.93645022,142.19,142.16,2.48393201]
[1768501563442,2.70356574,142.18,142.16,2.48393201]
[1768501563643,2.70356574,142.18,142.14,4.79654285]
[1768501564243,2.70356574,142.18,142.14,0.64]
[1768501564440,2.70356574,142.18,142.14,4.15654285]
[1768501565240,2.70356574,142.17,142.14,4.15654285]
[1768501565742,2.70356574,142.18,142.15,4.15654285]
[1768501566870,10.57645791,142.19,142.16,4.15654285]
[1768501567257,2.70356574,142.18,142.15,7.03477042]
[1768501567470,2.70356574,142.18,142.15,11.19131327]
[1768501567782,2.70356574,142.18,142.14,7.86791641]
[1768501567940,2.70356574,142.18,142.14,7.03513906]
[1768501568146,2.70356574,142.18,142.14,11.19168191]
[1768501568740,2.70356574,142.18,142.14,12.02603162]
[1768501568945,0.2,142.19,142.17,4.15654285]
[1768501569240,0.2,142.19,142.18,4.15654285]
[1768501569654,0.2,142.2,142.18,11.18988087]
[1768501569965,0.2,142.2,142.19,4.15654285]
[1768501570643,2.90356574,142.2,142.16,8.51006035]
[1768501570844,2.70356574,142.19,142.16,11.83066586]
[1768501571042,2.70356574,142.19,142.16,12.6666032]
[1768501571264,2.70356574,142.18,142.14,0.83671751]
[1768501571601,2.70356574,142.16,142.11,12.02974473]
[1768501571880,2.70356574,142.16,142.12,4.15654285]
[1768501572077,2.70356574,142.16,142.11,12.02973381]
[1768501572388,2.70356574,142.16,142.13,4.15654285]
[1768501572588,2.70356574,142.16,142.12,7.03614447]
[1768501572589,2.70356574,142.16,142.12,11.19268732]
[1768501572754,2.70356574,142.17,142.13,12.02971001]
[1768501572951,2.70356574,142.17,142.14,11.1917772]
[1768501573160,2.70356574,142.18,142.14,7.87272306]
[1768501573378,9.73693231,142.18,142.14,7.87272306]
[1768501573580,2.70356574,142.17,142.13,8.51390836]
[1768501573786,2.70356574,142.17,142.13,12.67045121]
[1768501573963,2.70356574,142.17,142.14,11.19185573]
[1768501574560,7.67301658,142.19,142.15,4.99554749]
[1768501574561,10.37658232,142.19,142.15,4.99554749]
[1768501574784,9.73658232,142.19,142.15,4.99554749]
[1768501575366,9.73658232,142.19,142.15,4.15654285]
[1768501575367,2.70356574,142.18,142.15,4.15654285]
[1768501576175,2.70356574,142.18,142.15,11.19131397]
[1768501576483,2.70356574,142.19,142.16,4.15654285]
[1768501577169,2.70356574,142.19,142.17,4.15654285]
[1768501578079,2.70356574,142.19,142.16,4.15654285]
[1768501579664,2.70356574,142.19,142.15,12.03252784]
[1768501580781,0.2,142.2,142.16,5.00058575]
[1768501580979,2.93670701,142.2,142.16,5.00058575]
[1768501582073,2.93670701,142.2,142.17,4.15654285]
[1768501582866,9.9690691,142.2,142.17,4.15654285]
[1768501583068,2.73670701,142.19,142.17,4.15654285]
[1768501583263,2.73670701,142.19,142.16,11.19079238]
[1768501583590,2.73670701,142.19,142.16,7.03424953]
[1768501585684,9.76131258,142.2,142.16,7.88229823]
[1768501585986,9.76131258,142.2,142.16,12.03884108]
[1768501586183,2.72895049,142.2,142.16,12.03884108]
[1768501590689,0.2,142.2,142.18,5.00772403]
[1768501590894,0.2,142.2,142.18,0.85118118]
[1768501591081,0.2,142.2,142.18,5.00772403]
[1768501591992,0.2,142.2,142.18,4.15654285]
[1768501592192,2.72895049,142.2,142.17,0.85178625]
[1768501592764,2.52895049,142.19,142.16,5.64892723]
[1768501593787,7.23250644,142.2,142.16,5.64892723]
[1768501593788,2.72895049,142.2,142.16,12.68324483]
[1768501593994,2.72895049,142.2,142.17,4.15654285]
[1768501594369,0.2,142.2,142.17,5.01010294]
[1768501594967,2.72895049,142.2,142.15,7.03466211]
[1768501595192,9.76151795,142.2,142.16,4.15654285]
[1768501595572,2.52895049,142.19,142.16,4.15654285]
[1768501596078,2.52895049,142.19,142.15,4.15654285]
[1768501596991,2.52895049,142.19,142.15,11.19135808]
[1768501597198,2.52895049,142.19,142.15,12.04606704]
[1768501597492,2.52895049,142.19,142.16,4.15654285]
[1768501597698,9.56185605,142.19,142.15,7.88952419]
[1768501597896,9.56185605,142.19,142.15,12.04606704]
[1768501598077,2.52895049,142.19,142.15,12.04606704]
[1768501598975,2.52895049,142.18,142.15,7.88952419]
[1768501599270,2.52895049,142.17,142.12,29.85638324]
[1768501599476,2.52895049,142.17,142.12,7.89245804]
[1768501599687,2.52895049,142.16,142.12,12.68900089]
[1768501600096,2.52895049,142.16,142.12,11.83261765]
[1768501600400,2.52895049,142.16,142.12,4.15654285]
[1768501600702,2.52895049,142.15,142.1,11.19374384]
[1768501601206,2.52895049,142.14,142.1,11.19374384]
[1768501601499,2.52895049,142.14,142.1,12.05121146]
[1768501602001,2.52895049,142.14,142.1,11.19374384]
[1768501602389,2.52895049,142.13,142.09,7.67763125]
[1768501602585,2.46895049,142.13,142.09,4.79654285]
[1768501602787,2.46895049,142.13,142.09,11.83419177]
[1768501603095,2.46895049,142.13,142.09,11.83430932]
[1768501603878,7.03584197,142.13,142.09,11.83430932]
[1768501604092,4.15654285,142.14,142.09,11.83430932]
[1768501604093,11.19207669,142.14,142.09,11.83430932]
[1768501604499,2.52895049,142.11,142.07,5.07559079]
[1768501604702,2.52895049,142.11,142.08,4.15654285]
[1768501605800,2.52895049,142.11,142.08,11.19469613]
[1768501606312,2.52895049,142.11,142.08,7.03815328]
[1768501606493,2.52895049,142.11,142.09,4.15654285]
[1768501606897,2.52895049,142.11,142.08,7.03815328]
[1768501607110,2.52895049,142.11,142.08,11.19469613]
[1768501608202,2.46895049,142.11,142.08,11.19469613]
[1768501609111,2.46895049,142.11,142.08,7.03815328]
[1768501609311,2.46895049,142.11,142.08,11.19469613]
[1768501609496,2.40895049,142.11,142.08,12.17636994]
[1768501610593,2.40895049,142.11,142.08,8.01982709]
[1768501610908,2.40895049,142.11,142.08,12.17636994]
[1768501611412,2.40895049,142.11,142.08,10.68092451]
[1768501611712,2.40895049,142.11,142.08,9.6992507]
[1768501613197,2.51769628,142.13,142.09,2.66109742]
[1768501613396,2.51769628,142.13,142.09,3.70542466]
[1768501613599,2.51769628,142.13,142.09,4.32542466]
[1768501615023,2.51769628,142.13,142.09,8.70187805]
[1768501615308,2.51769628,142.13,142.09,11.36297547]
[1768501617027,2.51769628,142.12,142.09,7.65755081]
[1768501617202,2.51769628,142.12,142.09,0.62]
[1768501618700,2.51769628,142.11,142.08,36.65818362]
[1768501619014,2.51769628,142.17,142.11,1.0468136]
[1768501619223,2.51769628,142.15,142.12,0.62]
[1768501619395,2.51769628,142.13,142.12,0.62]
[1768501620014,2.51769628,142.14,142.12,0.62]
[1768501621123,2.51769628,142.13,142.09,0.62]
[1768501621624,2.51769628,142.19,142.13,1.04822748]
[1768501621836,2.51769628,142.19,142.14,1.66822748]
[1768501621991,2.51769628,142.19,142.15,3.7093249]
[1768501622193,2.51769628,142.19,142.16,2.66109742]
[1768501623911,2.51769628,142.19,142.14,8.70431868]
[1768501624093,2.51769628,142.17,142.15,0.62]
[1768501624528,0.2,142.21,142.17,1.0495932]
[1768501624719,0.2,142.21,142.18,1.6695932]
[1768501624908,2.71769628,142.23,142.2,2.66109742]
[1768501625107,2.71769628,142.23,142.18,1.6695932]
[1768501625410,2.71769628,142.23,142.19,2.66109742]
[1768501625821,2.51769628,142.22,142.19,0.62]
[1768501626200,2.51769628,142.21,142.18,0.62]
[1768501628007,2.51769628,142.21,142.18,3.28109742]
[1768501628521,17.77540793,142.25,142.22,1.05134207]
[1768501628522,0.2,142.25,142.22,1.05134207]
[1768501628724,0.2,142.26,142.23,1.47134207]
[1768501629124,0.2,142.26,142.21,5.34408856]
[1768501629125,2.71769628,142.26,142.19,0.85134207]
[1768501629324,2.71769628,142.26,142.22,2.66109742]
[1768501629511,2.71769628,142.26,142.23,0.62]
[1768501630113,2.51769628,142.25,142.21,2.66109742]
[1768501630312,2.51769628,142.25,142.22,0.62]
[1768501630819,2.51769628,142.25,142.22,3.28109742]
[1768501631206,2.51769628,142.25,142.21,0.85218666]
[1768501631406,2.51769628,142.24,142.22,0.62]
[1768501631604,9.89053118,142.26,142.22,0.62]
[1768501631813,2.51769628,142.25,142.22,3.28109742]
[1768501632514,7.22943376,142.26,142.24,2.66109742]
[1768501632928,0.2,142.28,142.25,3.28109742]
[1768501633129,7.22791925,142.29,142.25,0.62]
[1768501633307,0.2,142.29,142.27,2.66109742]
[1768501633725,7.22804497,142.29,142.25,0.62]
[1768501633916,7.22804497,142.29,142.22,2.5829417]
[1768501634103,7.22804497,142.29,142.26,2.66109742]
[1768501634532,2.51769628,142.28,142.26,2.66109742]
[1768501635130,9.54615043,142.28,142.26,2.66109742]
[1768501635507,9.54615043,142.28,142.24,0.62]
[1768501635720,9.54615043,142.28,142.26,2.66109742]
[1768501636534,9.54615043,142.28,142.25,2.66109742]
[1768501636720,2.51769628,142.28,142.24,10.23327603]
[1768501636922,2.51769628,142.28,142.26,2.66109742]
[1768501637122,9.54613078,142.28,142.26,2.66109742]
[1768501637320,9.54613078,142.28,142.24,3.2029417]
[1768501637629,9.54613078,142.28,142.25,2.66109742]
[1768501638034,9.54613078,142.28,142.23,7.03067169]
[1768501638035,2.51769628,142.27,142.23,2.5829417]
[1768501638331,2.51769628,142.27,142.24,2.66109742]
[1768501638511,2.51769628,142.26,142.22,3.28109742]
[1768501639235,2.51769628,142.24,142.21,2.66109742]
[1768501642241,2.51769628,142.24,142.22,2.66109742]
[1768501642740,2.54917988,142.27,142.23,6.02712709]
[1768501642920,2.54917988,142.27,142.25,2.66109742]
[1768501643121,2.54917988,142.27,142.24,2.66109742]
[1768501643435,2.54917988,142.27,142.23,0.62]
[1768501643635,2.54917988,142.27,142.24,2.66109742]
[1768501644338,0.2,142.29,142.26,5.40712709]
[1768501644517,0.2,142.31,142.28,2.66109742]
[1768501645127,0.2,142.31,142.29,2.66109742]
[1768501645326,7.22727131,142.31,142.24,2.54264208]
[1768501645540,2.66109742,142.29,142.25,2.54264208]
[1768501645841,27.45565142,142.31,142.26,2.66109742]
[1768501646033,24.794554,142.31,142.26,2.66109742]
[1768501646224,27.45565142,142.31,142.26,2.66109742]
[1768501646422,24.794554,142.31,142.26,5.2037395]
[1768501646727,29.96471861,142.31,142.26,5.2037395]
[1768501646933,29.96471861,142.31,142.26,12.23310597]
[1768501647330,27.30362119,142.31,142.26,12.23310597]
[1768501647535,27.30362119,142.31,142.27,2.66109742]
[1768501647840,27.30362119,142.31,142.26,12.23310597]
[1768501648228,27.30362119,142.31,142.26,9.57200855]
[1768501648544,2.50715641,142.29,142.26,0.62]
[1768501649350,27.30077144,142.31,142.26,3.16264208]
[1768501649639,2.50621744,142.3,142.26,5.8237395]
[1768501650445,7.02790076,142.29,142.26,3.16264208]
[1768501650646,7.02790076,142.29,142.26,5.8237395]
[1768501651025,9.53382828,142.3,142.26,3.16264208]
[1768501651547,7.02761084,142.3,142.27,2.66109742]
[1768501651841,12.19536959,142.3,142.26,3.16264208]
[1768501652349,7.02761084,142.3,142.26,3.16264208]
[1768501652528,7.02761084,142.3,142.26,5.8237395]
[1768501652736,9.5344903,142.3,142.26,5.8237395]
[1768501654149,9.5344903,142.3,142.26,3.16264208]
[1768501654347,12.19558772,142.3,142.26,3.16264208]
[1768501655236,9.5344903,142.3,142.26,5.8237395]
[1768501655749,9.5344903,142.3,142.26,3.16264208]
[1768501655950,9.5344903,142.3,142.26,5.8237395]
[1768501656645,12.19643546,142.3,142.26,0.62]
[1768501656838,9.53533804,142.3,142.26,3.16264208]
[1768501657037,9.53533804,142.3,142.26,5.8237395]
[1768501657868,9.53554392,142.3,142.26,5.8237395]
[1768501658229,7.02761084,142.3,142.27,2.54264208]
[1768501658429,9.53574744,142.3,142.27,2.66109742]
[1768501659047,7.22707245,142.31,142.28,5.2037395]
[1768501659246,9.73520905,142.31,142.27,2.54264208]
[1768501659446,9.73520905,142.31,142.28,2.66109742]
[1768501659946,2.50833778,142.3,142.25,5.2037395]
[1768501660150,2.50833778,142.3,142.25,2.54264208]
[1768501660361,2.50833778,142.3,142.27,2.66109742]
[1768501660562,2.50833778,142.3,142.26,2.54264208]
[1768501660730,9.53620617,142.3,142.27,2.66109742]
[1768501662459,9.53620617,142.3,142.26,2.54264208]
[1768501662668,9.53620617,142.3,142.26,5.2037395]
[1768501664053,2.50911966,142.29,142.25,0.6]
[1768501664268,2.50911966,142.29,142.25,5.8037395]
[1768501664442,7.02839471,142.28,142.25,5.8037395]
[1768501665670,0.92481854,142.27,142.25,5.8037395]
[1768501666675,0.92481854,142.27,142.26,2.66109742]
[1768501666844,7.02839471,142.28,142.26,2.66109742]
[1768501667047,7.02839471,142.28,142.25,3.14264208]
[1768501667258,7.02839471,142.28,142.26,2.66109742]
[1768501668571,7.02839471,142.28,142.25,3.14264208]
[1768501668877,7.02839471,142.28,142.26,2.66109742]
[1768501669452,7.02810543,142.29,142.27,5.2037395]
[1768501669663,7.02810543,142.29,142.27,2.66109742]
[1768501670688,7.02810543,142.29,142.26,2.54264208]
[1768501670978,7.02810543,142.29,142.27,2.66109742]
[1768501672878,7.02810543,142.29,142.27,2.6063774]
[1768501673079,27.10684746,142.3,142.27,5.26747482]
[1768501673478,27.10684746,142.3,142.27,6.75407536]
[1768501674178,27.10684746,142.3,142.24,7.03035286]
[1768501674179,2.51109254,142.29,142.23,29.0]
[1768501674385,2.51125977,142.27,142.23,32.2063774]
[1768501674557,2.51125977,142.25,142.2,2.6063774]
[1768501674758,2.51125977,142.24,142.2,7.35407536]
[1768501675256,7.03057571,142.24,142.21,2.6063774]
[1768501675458,9.54140873,142.25,142.22,4.14769796]
[1768501676775,2.51142508,142.25,142.22,4.14769796]
[1768501677085,9.54049214,142.27,142.23,6.75407536]
[1768501677405,9.54030241,142.28,142.24,2.6063774]
[1768501677571,9.54030241,142.28,142.25,4.14769796]
[1768501678262,9.54030241,142.28,142.25,6.75407536]
[1768501678665,9.54030241,142.28,142.24,6.75407536]
[1768501678866,13.68800037,142.28,142.24,2.6063774]
[1768501679287,9.54030241,142.28,142.24,2.6063774]
[1768501679490,9.54030241,142.28,142.24,13.7842384]
[1768501679785,9.54030241,142.28,142.24,6.75407536]
[1768501680773,9.54030241,142.28,142.24,7.35407536]
[1768501681386,9.54030241,142.28,142.24,6.75407536]
[1768501681594,9.54030241,142.28,142.25,4.14769796]
[1768501682396,7.02809872,142.29,142.26,6.75407536]
[1768501682593,9.54012787,142.3,142.26,2.6063774]
[1768501682798,9.54012787,142.3,142.26,6.75407536]
[1768501682996,7.02759759,142.3,142.27,2.6063774]
[1768501683300,7.02759759,142.3,142.27,6.75407536]
[1768501684683,9.54042757,142.3,142.27,4.14769796]
[1768501685097,7.02759759,142.3,142.27,6.75407536]
[1768501685274,9.73992803,142.31,142.27,6.75407536]
[1768501685469,0.2,142.31,142.3,6.75407536]
[1768501685679,0.2,142.32,142.31,2.6063774]
[1768501685899,0.2,142.33,142.31,6.75407536]
[1768501686200,7.22596936,142.33,142.31,6.75407536]
[1768501686584,7.22596936,142.33,142.31,4.14769796]
[1768501688276,9.73923611,142.33,142.29,6.75407536]
[1768501688604,9.73923611,142.33,142.3,4.14769796]
[1768501688988,9.73923611,142.33,142.29,7.35407536]
[1768501691710,2.51382605,142.32,142.29,4.74769796]
[1768501692280,2.51382605,142.32,142.27,2.6063774]
[1768501692484,2.51382605,142.32,142.28,4.14769796]
[1768501692704,2.51396188,142.3,142.26,4.74769796]
[1768501692913,9.54235659,142.28,142.25,4.74769796]
[1768501693104,9.54202366,142.29,142.25,7.35407536]
[1768501694003,9.54202366,142.29,142.26,4.14769796]
[1768501696011,7.02806178,142.29,142.26,6.75407536]
[1768501696888,7.02806178,142.29,142.26,7.35407536]
[1768501697092,7.02806178,142.29,142.26,3.2063774]
[1768501697290,7.02806178,142.29,142.26,7.35407536]
[1768501699096,7.02806178,142.29,142.26,6.75407536]
[1768501699296,7.02806178,142.29,142.26,7.35407536]
[1768501699711,7.02806178,142.29,142.26,3.2063774]
[1768501699912,7.02806178,142.29,142.26,7.35407536]
[1768501700091,7.02806178,142.29,142.27,2.6063774]
[1768501700895,7.02806178,142.29,142.26,7.34742868]
[1768501701198,7.02806178,142.29,142.27,4.14769796]
[1768501701705,17.56637702,142.32,142.29,2.59973072]
[1768501701903,7.02641933,142.32,142.3,6.74742868]
[1768501702613,7.02641933,142.32,142.31,4.14769796]
[1768501702816,7.02641933,142.32,142.3,6.74742868]
[1768501703489,9.54189449,142.32,142.27,2.59973072]
[1768501703693,7.02641933,142.32,142.29,6.74742868]
[1768501704618,0.2,142.33,142.3,2.59973072]
[1768501704809,0.2,142.33,142.31,4.74769796]
[1768501706754,7.42474282,142.37,142.33,2.7130803]
[1768501707936,7.02397425,142.37,142.34,2.7130803]
[1768501709317,7.42477402,142.37,142.33,2.7130803]
[1768501709512,11.57247198,142.37,142.33,2.7130803]
[1768501710315,24.9846532,142.37,142.33,2.7130803]
[1768501710515,29.13235116,142.37,142.33,2.7130803]
[1768501710723,28.73155139,142.37,142.33,2.7130803]
[1768501711126,7.02397425,142.37,142.34,2.7130803]
[1768501713438,7.02397425,142.37,142.35,2.7130803]
[1768501714637,0.2,142.38,142.37,2.7130803]
[1768501714826,0.2,142.38,142.37,6.86077826]
[1768501715220,0.2,142.38,142.37,2.7130803]
[1768501715614,18.23943947,142.4,142.38,2.7130803]
[1768501715828,18.23943947,142.4,142.38,2.6830803]
[1768501717536,10.58467422,142.4,142.37,11.77137964]
[1768501717836,10.58467422,142.4,142.38,4.14769796]
[1768501718338,10.58467422,142.4,142.37,11.77137964]
[1768501718935,2.76047132,142.39,142.36,4.14769796]
[1768501719130,2.76047132,142.39,142.34,36.0252095]
[1768501719314,2.76047132,142.38,142.33,11.17343193]
[1768501719514,2.76047132,142.38,142.33,11.75343193]
[1768501719937,4.14769796,142.38,142.33,11.75343193]
[1768501720122,2.76047132,142.36,142.33,7.02573397]
[1768501722039,2.76047132,142.36,142.33,11.17343193]
[1768501724041,2.76047132,142.35,142.32,4.14769796]
[1768501724240,2.76047132,142.35,142.31,7.60690482]
[1768501724545,2.76047132,142.35,142.31,4.14769796]
[1768501724933,2.76047132,142.35,142.32,4.14769796]
[1768501725245,2.76047132,142.39,142.34,4.14769796]
[1768501725478,13.34514554,142.4,142.37,4.14769796]
[1768501725628,10.58467422,142.4,142.37,4.14769796]
[1768501726547,10.58467422,142.4,142.37,11.17159887]
[1768501727244,10.58467422,142.4,142.39,4.14769796]
[1768501727546,0.1,142.42,142.39,4.14769796]
[1768501728127,0.1,142.42,142.4,4.14769796]
[1768501729329,0.1,142.42,142.41,4.14769796]
[1768501729531,0.1,142.42,142.41,4.11769796]
[1768501729833,2.76047132,142.44,142.41,4.11769796]
[1768501730147,2.76047132,142.44,142.42,4.14769796]
[1768501731848,2.76047132,142.44,142.41,4.72769796]
[1768501732048,2.5231022,142.43,142.4,7.02218643]
[1768501732231,2.5231022,142.43,142.4,11.74988439]
[1768501732626,2.5231022,142.43,142.41,4.14769796]
[1768501733248,2.5231022,142.43,142.4,7.60218643]
[1768501733443,2.5231022,142.43,142.4,11.74988439]
[1768501734534,2.5231022,142.43,142.41,4.14769796]
[1768501735435,2.5231022,142.43,142.41,2.64918789]
[1768501736728,2.5231022,142.43,142.4,0.58]
[1768501736935,2.5231022,142.43,142.4,3.22918789]
[1768501737329,9.54375468,142.44,142.4,10.25161338]
[1768501737534,9.54375468,142.44,142.41,2.64918789]
[1768501737936,9.54375468,142.44,142.41,2.61918789]
[1768501738132,9.54375468,142.44,142.41,1e-08]
[1768501740258,9.54375468,142.44,142.41,2.64918789]
[1768501740843,2.5231022,142.43,142.39,0.58]
[1768501741038,2.5231022,142.43,142.39,3.22918789]
[1768501741877,2.5231022,142.42,142.39,3.22918789]
[1768501742078,2.5231022,142.42,142.4,2.64918789]
[1768501742242,9.54434534,142.43,142.41,2.64918789]
[1768501742563,9.54434534,142.43,142.4,2.64918789]
[1768501744367,2.5231022,142.43,142.41,2.64918789]
[1768501745343,2.5231022,142.43,142.39,7.02277032]
[1768501745544,2.5231022,142.43,142.4,2.64918789]
[1768501747869,2.5231022,142.42,142.39,7.02277032]
[1768501748051,2.5231022,142.42,142.39,9.67195821]
[1768501751490,2.5231022,142.42,142.39,7.60277032]
[1768501751763,2.5231022,142.42,142.39,10.25195821]
[1768501752854,2.5231022,142.42,142.4,2.64918789]
[1768501753571,2.5231022,142.44,142.41,2.64918789]
[1768501753962,2.5231022,142.44,142.39,25.16018305]
[1768501754177,2.5231022,142.44,142.41,2.64918789]
[1768501754858,2.5231022,142.44,142.41,9.67094365]
[1768501755174,2.5231022,142.44,142.41,2.64918789]
[1768501755678,2.5231022,142.44,142.41,9.67114055]
[1768501756753,2.5231022,142.44,142.41,2.64918789]
[1768501757281,2.5231022,142.44,142.41,9.67101012]
[1768501757495,2.6231022,142.45,142.42,2.64918789]
[1768501757775,2.6231022,142.45,142.41,9.67101012]
[1768501758161,2.6231022,142.45,142.42,3.22918789]
[1768501760056,2.5231022,142.44,142.37,17.55924317]
[1768501760257,2.5231022,142.43,142.39,7.02267273]
[1768501761480,2.5231022,142.43,142.4,7.02244832]
[1768501761668,2.5231022,142.43,142.38,3.22918789]
[1768501761669,2.5231022,142.43,142.39,7.0227313]
[1768501762078,2.24143515,142.42,142.39,7.6027313]
[1768501762257,2.24143515,142.42,142.38,7.60327922]
[1768501763380,2.24143515,142.42,142.38,10.25246711]
[1768501763879,2.24143515,142.42,142.38,7.60327922]
[1768501764465,2.24143515,142.42,142.38,10.25246711]
[1768501764985,2.24143515,142.42,142.39,2.64918789]
[1768501765381,2.24143515,142.42,142.38,27.81111298]
[1768501766182,2.35101031,142.43,142.38,27.81111298]
[1768501766961,9.37170888,142.44,142.4,7.02247191]
[1768501767363,2.35101031,142.43,142.39,9.67193875]
[1768501767681,2.35101031,142.43,142.39,7.02275086]
[1768501768969,2.35101031,142.43,142.39,6.02275086]
[1768501769671,9.37207334,142.43,142.39,6.02275086]
[1768501769868,5.0001982,142.42,142.39,6.02275086]
[1768501770081,2.35101031,142.42,142.39,6.02275086]
[1768501772495,2.64918789,142.44,142.39,6.02275086]
[1768501772496,9.37204445,142.43,142.39,6.02275086]
[1768501773572,2.35101031,142.43,142.39,6.02275086]
[1768501774700,2.35101031,142.43,142.39,6.60275086]
[1768501774885,2.35101031,142.42,142.39,6.60275086]
[1768501780102,2.35101031,142.43,142.39,6.60275086]
[1768501780482,2.35101031,142.44,142.39,26.80935148]
[1768501781911,2.45101031,142.45,142.4,2.64918789]
[1768501782317,2.45101031,142.45,142.41,2.64918789]
[1768501782996,2.45101031,142.45,142.4,2.64918789]
[1768501783901,2.45101031,142.45,142.41,7.02197879]
[1768501784791,0.1,142.45,142.41,7.02197879]
[1768501785213,0.1,142.45,142.42,0.56]
[1768501786215,0.1,142.45,142.42,7.5811627]
[1768501786590,0.1,142.45,142.42,36.5811627]
[1768501787231,0.1,142.45,142.42,36.0211627]
[1768501787516,0.1,142.45,142.43,0.56]
[1768501789020,2.35101031,142.43,142.41,29.0]
[1768501789219,2.35101031,142.43,142.39,7.58276479]
[1768501789610,5.0001982,142.41,142.36,51.90516668]
[1768501789912,2.35101031,142.4,142.37,7.58368418]
[1768501790116,2.64918789,142.42,142.37,7.58368418]
[1768501790904,9.67089389,142.42,142.37,7.58368418]
[1768501791220,2.64918789,142.41,142.37,7.58368418]
[1768501792125,2.02351278,142.4,142.37,7.58368418]
[1768501796204,2.02351278,142.4,142.37,7.02368418]
[1768501798826,2.02351278,142.42,142.37,11.16519321]